[Event "Int SVK-ch Open 2020"]
[Site "Drienica"]
[Date "2020.08.13"]
[Round "6.4"]
[White "Macko, Michal"]
[Black "Orsag, Milan"]
[Result "1/2-1/2"]
[ECO "D00"]
[WhiteElo "2148"]
[BlackElo "2300"]
[Annotator "ChessBase"]
[PlyCount "126"]
[EventDate "2020.08.07"]
[EventType "swiss"]
[EventCountry "SVK"]
[TimeControl "40/5400+30:1800+30"]

1. d4 {[%emt 0:00:00]} d5 {[%emt 0:00:30]} 2. Bf4 {[%emt 0:00:00]} Nf6 {[%emt 0:01:24]} 3. e3 {[%emt 0:00:00]} g6 {[%emt 0:00:30]} 4. Nc3 {[%emt 0:01:05]} Bg7 {[%emt 0:00:45]} 5. h4 {[%emt 0:00:06]} h6 {[%emt 0:00:45]} 6. Qd2 {[%emt 0:02:52]} c6 {[%emt 0:05:14]} 7. Bd3 {[%emt 0:03:05]} Nbd7 {[%emt 0:02:08]} 8. Nf3 {[%emt 0:01:11]} O-O {[%emt 0:09:37]} 9. e4 {[%emt 0:03:32]} dxe4 {[%emt 0:02:51]} 10. Nxe4 {[%emt 0:00:05]} Nxe4 {[%emt 0:07:19]} 11. Bxe4 {[%emt 0:00:05]} Nf6 {[%emt 0:00:19]} 12. Bd3 {[%emt 0:00:30]} Bg4 {[%emt 0:01:17]} 13. c3 {[%emt 0:02:59]} Bxf3 {[%emt 0:03:40]} 14. gxf3 {[%emt 0:00:06]} Qd5 {[%emt 0:01:34]} 15. O-O-O {[%emt 0:00:46]} h5 {[%emt 0:05:03]} 16. Qe2 {[%emt 0:01:18]} Qxa2 {[%emt 0:02:50]} 17. Bc4 {[%emt 0:02:00]} Qa4 {[%emt 0:01:24]} 18. Rhg1 {[%emt 0:01:44]} b5 {[%emt 0:09:42]} 19. Bd3 {[%emt 0:00:13]} Nd5 {[%emt 0:06:20]} 20. Be5 {[%emt 0:02:28]} Bh6+ {[%emt 0:03:08]} 21. Kb1 {[%emt 0:01:32]} Qb3 {[%emt 0:01:40]} 22. Ka1 {[%emt 0:02:43]} Qa4+ {[%emt 0:03:28]} 23. Kb1 {[%emt 0:00:06]} Kh7 {[%emt 0:03:57]} 24. f4 {[%emt 0:01:43]} f5 {[%emt 0:03:05]} 25. Rxg6 {[%emt 0:00:54]} Nxc3+ {[%emt 0:01:47]} 26. bxc3 {[%emt 0:00:04]} Qb3+ {[%emt 0:00:05]} 27. Ka1 {[%emt 0:00:52]} Qa3+ {[%emt 0:03:02]} 28. Kb1 {[%emt 0:00:44]} Qb3+ {[%emt 0:00:06]} 29. Kc1 {[%emt 0:01:38]} Qxc3+ {[%emt 0:03:42]} 30. Bc2 {[%emt 0:01:18]} Qa3+ {[%emt 0:02:33]} 31. Kd2 {[%emt 0:00:19]} Qb4+ {[%emt 0:00:23]} 32. Ke3 {[%emt 0:00:13]} Qa3+ {[%emt 0:00:34]} 33. Bd3 {[%emt 0:00:13]} Kxg6 {[%emt 0:04:03]} 34. Rg1+ {[%emt 0:00:09]} Kf7 {[%emt 0:00:20]} 35. Qxh5+ {[%emt 0:00:21]} Ke6 {[%emt 0:00:05]} 36. Qxh6+ {[%emt 0:01:14]} Kd7 {[%emt 0:01:42]} 37. Qg6 {[%emt 0:02:57]} Rae8 {[%emt 0:02:33]} 38. Bg7 {[%emt 0:00:38]} Rf6 {[%emt 0:00:34]} 39. Qh7 {[%emt 0:00:59]} Re6+ {[%emt 0:02:08]} 40. Be5 {[%emt 0:00:06]} c5 {[%emt 0:00:20]} 41. d5 {[%emt 0:31:16]} Rxe5+ {[%emt 0:33:18]} 42. fxe5 {[%emt 0:00:09]} c4 {[%emt 0:00:36]} 43. Rd1 {[%emt 0:02:40]} f4+ {[%emt 0:00:00]} 44. Kxf4 {[%emt 0:00:00]} cxd3 {[%emt 0:00:00]} 45. Qf5+ {[%emt 0:00:00]} Kc7 {[%emt 0:00:00]} 46. Rxd3 {[%emt 0:00:00]} Qb4+ {[%emt 0:00:00]} 47. Kf3 {[%emt 0:00:00]} Kb8 {[%emt 0:00:00]} 48. d6 {[%emt 0:00:00]} exd6 {[%emt 0:00:00]} 49. exd6 {[%emt 0:00:00]} a6 {[%emt 0:00:00]} 50. d7 {[%emt 0:00:00]} Rd8 {[%emt 0:00:00]} 51. Qf6 {[%emt 0:00:00]} Qf8 {[%emt 0:00:00]} 52. Qxf8 {[%emt 0:00:00]} Rxf8+ {[%emt 0:00:00]} 53. Ke4 {[%emt 0:00:00]} Kc7 {[%emt 0:00:00]} 54. Ke5 {[%emt 0:00:00]} Kd8 {[%emt 0:00:00]} 55. f4 {[%emt 0:00:00]} Rh8 {[%emt 0:00:00]} 56. Rd6 {[%emt 0:00:00]} Rxh4 {[%emt 0:00:00]} 57. Rxa6 {[%emt 0:00:00]} Kxd7 {[%emt 0:00:00]} 58. Rb6 {[%emt 0:00:00]} Ke8 {[%emt 0:00:00]} 59. Rxb5 {[%emt 0:00:00]} Rh5+ {[%emt 0:00:00]} 60. f5 {[%emt 0:00:00]} Rh6 {[%emt 0:00:00]} 61. Rb7 {[%emt 0:00:00]} Kf8 {[%emt 0:00:00]} 62. Rd7 {[%emt 0:00:00]} Ra6 {[%emt 0:00:06]} 63. Rd8+ {[%emt 0:00:00]} Kf7 {[%emt 0:00:07]} 1/2-1/2

[Event "Int SVK-ch Open 2020"]
[Site "Drienica"]
[Date "2020.08.13"]
[Round "6.5"]
[White "Istona, Martin"]
[Black "Bombek, Peter"]
[Result "1-0"]
[ECO "C02"]
[WhiteElo "2267"]
[BlackElo "2181"]
[Annotator "ChessBase"]
[PlyCount "65"]
[EventDate "2020.08.07"]
[EventType "swiss"]
[EventCountry "SVK"]
[TimeControl "40/5400+30:1800+30"]

1. e4 {[%emt 0:05:27]} e6 {[%emt 0:00:00]} 2. d4 {[%emt 0:00:05]} d5 {[%emt 0:00:00]} 3. e5 {[%emt 0:00:18]} c5 {[%emt 0:00:00]} 4. c3 {[%emt 0:00:34]} Bd7 {[%emt 0:00:01]} 5. Nf3 {[%emt 0:00:00]} Nc6 {[%emt 0:00:04]} 6. Be2 {[%emt 0:00:18]} Nge7 {[%emt 0:00:30]} 7. O-O {[%emt 0:00:08]} Ng6 {[%emt 0:00:13]} 8. g3 {[%emt 0:00:13]} Be7 {[%emt 0:00:09]} 9. h4 {[%emt 0:00:08]} cxd4 {[%emt 0:00:15]} 10. cxd4 {[%emt 0:00:08]} O-O {[%emt 0:00:07]} 11. h5 {[%emt 0:00:05]} Nh8 {[%emt 0:00:04]} 12. Nbd2 {[%emt 0:00:52]} f6 {[%emt 0:00:35]} 13. h6 {[%emt 0:00:46]} g6 {[%emt 0:01:27]} 14. exf6 {[%emt 0:00:06]} Bxf6 {[%emt 0:00:14]} 15. Nb3 {[%emt 0:00:07]} Nf7 {[%emt 0:01:52]} 16. Nc5 {[%emt 0:00:46]} b6 {[%emt 0:04:47]} 17. Nxd7 {[%emt 0:01:23]} Qxd7 {[%emt 0:00:01]} 18. Bb5 {[%emt 0:08:16]} a6 {[%emt 0:08:27]} 19. Bxc6 {[%emt 0:01:54]} Qxc6 {[%emt 0:00:01]} 20. Bf4 {[%emt 0:03:23]} g5 {[%emt 0:08:16]} 21. Be3 {[%emt 0:04:17]} Kh8 {[%emt 0:02:19]} 22. Rc1 {[%emt 0:31:34]} Qd6 {[%emt 0:04:02]} 23. Kg2 {[%emt 0:05:53]} Nxh6 {[%emt 0:09:06]} 24. Nxg5 {[%emt 0:02:44]} Nf7 {[%emt 0:18:47]} 25. Nxh7 {[%emt 0:01:10]} Kxh7 {[%emt 0:01:43]} 26. Rh1+ {[%emt 0:00:47]} Kg8 {[%emt 0:00:52]} 27. Qh5 {[%emt 0:03:05]} Nh6 {[%emt 0:04:02]} 28. Qg6+ {[%emt 0:01:44]} Bg7 {[%emt 0:00:18]} 29. Rxh6 {[%emt 0:02:10]} Rf6 {[%emt 0:01:18]} 30. Qh7+ {[%emt 0:00:19]} Kf7 {[%emt 0:00:52]} 31. Rxf6+ {[%emt 0:00:31]} Kxf6 {[%emt 0:00:06]} 32. Bg5+ {[%emt 0:00:15]} Kf7 {[%emt 0:00:38]} 33. Bf4 {[%emt 0:00:28]} 1-0

[Event "Int SVK-ch Open 2020"]
[Site "Drienica"]
[Date "2020.08.12"]
[Round "6.5"]
[White "Lehocz, Jozsef Jr."]
[Black "Durica, Andrej"]
[Result "1/2-1/2"]
[ECO "C23"]
[WhiteElo "1534"]
[BlackElo "1911"]
[Annotator "ChessBase"]
[PlyCount "73"]
[EventDate "2020.08.07"]
[EventType "swiss"]
[EventCountry "SVK"]
[SourceTitle "playchess.com"]
[Source "ChessBase"]
[SourceQuality "1"]
[TimeControl "40/5400+30:1800+30"]

1. e4 {[%emt 0:00:00]} e5 {[%emt 0:00:00]} 2. Bc4 {[%emt 0:00:00]} f5 {[%emt 0:00:00]} 3. d3 {[%emt 0:05:44]} Nf6 {[%emt 0:00:45]} 4. Nc3 {[%emt 0:13:39]} Bb4 {[%emt 0:00:25]} 5. Nf3 {[%emt 0:02:00]} Nc6 {[%emt 0:01:28]} 6. O-O {[%emt 0:00:34]} Bxc3 {[%emt 0:00:40]} 7. bxc3 {[%emt 0:00:17]} d6 {[%emt 0:00:25]} 8. Ng5 {[%emt 0:01:17]} Qe7 {[%emt 0:02:17]} 9. Bf7+ {[%emt 0:13:27]} Kf8 {[%emt 0:04:51]} 10. Bb3 {[%emt 0:02:37]} Na5 {[%emt 0:06:55]} 11. Qe2 {[%emt 0:26:23]} Nxb3 {[%emt 0:00:34]} 12. cxb3 {[%emt 0:00:27]} h6 {[%emt 0:00:38]} 13. Nf3 {[%emt 0:00:30]} fxe4 {[%emt 0:02:00]} 14. dxe4 {[%emt 0:00:06]} Bg4 {[%emt 0:04:01]} 15. h3 {[%emt 0:00:35]} Bh5 {[%emt 0:02:29]} 16. g4 {[%emt 0:12:31]} Nxg4 {[%emt 0:03:15]} 17. hxg4 {[%emt 0:00:28]} Bxg4 {[%emt 0:00:07]} 18. Qd3 {[%emt 0:05:17]} Bh3 {[%emt 0:11:44]} 19. Re1 {[%emt 0:00:10]} Qe6 {[%emt 0:01:48]} 20. Nh2 {[%emt 0:00:13]} g5 {[%emt 0:00:47]} 21. Re3 {[%emt 0:00:26]} g4 {[%emt 0:00:59]} 22. Ba3 {[%emt 0:06:54]} Kg7 {[%emt 0:01:55]} 23. Qd5 {[%emt 0:00:38]} Qxd5 {[%emt 0:01:34]} 24. exd5 {[%emt 0:00:06]} Raf8 {[%emt 0:00:24]} 25. c4 {[%emt 0:00:24]} b6 {[%emt 0:00:37]} 26. b4 {[%emt 0:00:01]} Rf4 {[%emt 0:02:03]} 27. c5 {[%emt 0:00:18]} Rhf8 {[%emt 0:00:40]} 28. Re2 {[%emt 0:00:11]} h5 {[%emt 0:02:02]} 29. cxd6 {[%emt 0:00:09]} cxd6 {[%emt 0:00:20]} 30. b5 {[%emt 0:00:02]} R8f6 {[%emt 0:04:20]} 31. Rd1 {[%emt 0:01:17]} h4 {[%emt 0:00:39]} 32. Rd3 {[%emt 0:00:14]} Rg6 {[%emt 0:04:32]} 33. Ree3 {[%emt 0:00:48]} Rgf6 {[%emt 0:03:22]} 34. Re2 {[%emt 0:00:57]} Rg6 {[%emt 0:09:37]} 35. Ree3 {[%emt 0:00:36]} Rgf6 {[%emt 0:09:01]} 36. Rd2 {[%emt 0:01:09]} Rg6 {[%emt 0:03:05]} 37. Rdd3 {[%emt 0:00:21]} 1/2-1/2

[Event "Int SVK-ch Open 2020"]
[Site "Drienica"]
[Date "2020.08.12"]
[Round "6.6"]
[White "Ferkova, Dominika"]
[Black "Kukan, Michal"]
[Result "1-0"]
[ECO "E81"]
[WhiteElo "2111"]
[BlackElo "1769"]
[Annotator "ChessBase"]
[PlyCount "67"]
[EventDate "2020.08.07"]
[EventType "swiss"]
[EventCountry "SVK"]
[SourceTitle "playchess.com"]
[Source "ChessBase"]
[SourceQuality "1"]
[TimeControl "40/5400+30:1800+30"]

1. d4 {[%emt 0:00:00]} Nf6 {[%emt 0:00:00]} 2. c4 {[%emt 0:00:00]} g6 {[%emt 0:00:00]} 3. Nc3 {[%emt 0:00:00]} Bg7 {[%emt 0:00:15]} 4. e4 {[%emt 0:00:00]} d6 {[%emt 0:00:34]} 5. f3 {[%emt 0:00:03]} O-O {[%emt 0:00:31]} 6. Be3 {[%emt 0:00:03]} Nbd7 {[%emt 0:00:26]} 7. Nge2 {[%emt 0:01:12]} e5 {[%emt 0:01:42]} 8. d5 {[%emt 0:01:00]} a6 {[%emt 0:01:52]} 9. Qd2 {[%emt 0:04:51]} Nb6 {[%emt 0:02:57]} 10. Ng3 {[%emt 0:07:38]} Ne8 {[%emt 0:02:33]} 11. Bd3 {[%emt 0:10:55]} f5 {[%emt 0:02:44]} 12. Bf2 {[%emt 0:02:41]} Bd7 {[%emt 0:09:37]} 13. Rb1 {[%emt 0:16:40]} Kh8 {[%emt 0:03:00]} 14. b4 {[%emt 0:01:07]} f4 {[%emt 0:21:56]} 15. Nge2 {[%emt 0:00:50]} Qg5 {[%emt 0:01:45]} 16. g3 {[%emt 0:06:14]} Bh6 {[%emt 0:01:21]} 17. h4 {[%emt 0:01:56]} Qe7 {[%emt 0:04:19]} 18. g4 {[%emt 0:04:48]} Rf7 {[%emt 0:02:07]} 19. c5 {[%emt 0:01:48]} Nc8 {[%emt 0:03:57]} 20. a4 {[%emt 0:02:30]} Qf8 {[%emt 0:01:29]} 21. Bc4 {[%emt 0:06:46]} Bxg4 {[%emt 0:02:03]} 22. fxg4 {[%emt 0:00:56]} f3 {[%emt 0:00:59]} 23. g5 {[%emt 0:00:53]} fxe2 {[%emt 0:00:30]} 24. Qxe2 {[%emt 0:00:31]} Bg7 {[%emt 0:00:43]} 25. h5 {[%emt 0:11:46]} Rf3 {[%emt 0:03:51]} 26. Be3 {[%emt 0:00:59]} gxh5 {[%emt 0:02:47]} 27. Rxh5 {[%emt 0:01:18]} Ne7 {[%emt 0:01:01]} 28. Kd2 {[%emt 0:01:40]} Rg3 {[%emt 0:12:38]} 29. Rf1 {[%emt 0:01:19]} Qg8 {[%emt 0:01:55]} 30. Qh2 {[%emt 0:00:34]} Rg4 {[%emt 0:04:04]} 31. Be2 {[%emt 0:00:56]} Rf4 {[%emt 0:00:31]} 32. Rh1 {[%emt 0:00:31]} Qf7 {[%emt 0:01:44]} 33. Rxh7+ {[%emt 0:00:10]} Kg8 {[%emt 0:00:23]} 34. Rh8+ {[%emt 0:00:11]} 1-0

[Event "Int SVK-ch Open 2020"]
[Site "Drienica"]
[Date "2020.08.13"]
[Round "6.6"]
[White "Frink, Ferenc"]
[Black "Mrvova, Alena"]
[Result "0-1"]
[ECO "B20"]
[WhiteElo "2075"]
[BlackElo "2188"]
[Annotator "ChessBase"]
[PlyCount "142"]
[EventDate "2020.08.07"]
[EventType "swiss"]
[EventCountry "SVK"]
[TimeControl "40/5400+30:1800+30"]

1. e4 {[%emt 0:00:00]} c5 {[%emt 0:01:29]} 2. b3 {[%emt 0:06:47]} b6 {[%emt 0:01:47]} 3. Bb2 {[%emt 0:00:54]} Bb7 {[%emt 0:00:07]} 4. d3 {[%emt 0:00:41]} d5 {[%emt 0:01:54]} 5. Nd2 {[%emt 0:00:24]} d4 {[%emt 0:01:53]} 6. Be2 {[%emt 0:02:34]} e5 {[%emt 0:00:36]} 7. Nh3 {[%emt 0:01:35]} Ne7 {[%emt 0:05:28]} 8. O-O {[%emt 0:04:35]} Ng6 {[%emt 0:00:25]} 9. Bg4 {[%emt 0:07:00]} Bd6 {[%emt 0:01:57]} 10. Bf5 {[%emt 0:00:30]} Nc6 {[%emt 0:01:42]} 11. Qh5 {[%emt 0:03:04]} Qf6 {[%emt 0:04:10]} 12. g3 {[%emt 0:12:49]} h6 {[%emt 0:03:42]} 13. Rae1 {[%emt 0:06:30]} Nge7 {[%emt 0:02:42]} 14. Qg4 {[%emt 0:02:16]} g6 {[%emt 0:03:04]} 15. Bd7+ {[%emt 0:00:48]} Kd8 {[%emt 0:00:04]} 16. Bxc6 {[%emt 0:07:11]} Nxc6 {[%emt 0:00:57]} 17. Qe2 {[%emt 0:01:17]} g5 {[%emt 0:00:25]} 18. Nc4 {[%emt 0:02:45]} Bc7 {[%emt 0:00:29]} 19. Qh5 {[%emt 0:02:46]} b5 {[%emt 0:01:13]} 20. Nd2 {[%emt 0:01:57]} Rg8 {[%emt 0:00:13]} 21. f3 {[%emt 0:00:32]} Ba5 {[%emt 0:00:50]} 22. Re2 {[%emt 0:02:20]} Nb4 {[%emt 0:00:29]} 23. Ba3 {[%emt 0:02:02]} Nxc2 {[%emt 0:00:54]} 24. Bxc5 {[%emt 0:00:15]} Ne3 {[%emt 0:00:07]} 25. Rxe3 {[%emt 0:03:35]} dxe3 {[%emt 0:00:14]} 26. Bxe3 {[%emt 0:00:08]} Bb6 {[%emt 0:00:10]} 27. Re1 {[%emt 0:03:08]} Rc8 {[%emt 0:01:47]} 28. Nf2 {[%emt 0:02:39]} Rg6 {[%emt 0:01:24]} 29. h4 {[%emt 0:08:15]} Bxe3 {[%emt 0:00:50]} 30. Rxe3 {[%emt 0:00:09]} Rc1+ {[%emt 0:00:30]} 31. Nf1 {[%emt 0:01:44]} gxh4 {[%emt 0:00:17]} 32. Ng4 {[%emt 0:00:13]} Qe7 {[%emt 0:02:42]} 33. d4 {[%emt 0:03:57]} exd4 {[%emt 0:02:18]} 34. Rd3 {[%emt 0:00:07]} Qg5 {[%emt 0:00:42]} 35. Rxd4+ {[%emt 0:00:57]} Ke8 {[%emt 0:00:10]} 36. Qxg5 {[%emt 0:00:49]} hxg5 {[%emt 0:00:07]} 37. Kg2 {[%emt 0:03:08]} Rc2+ {[%emt 0:00:49]} 38. Kh3 {[%emt 0:00:13]} Bc8 {[%emt 0:01:38]} 39. Nfe3 {[%emt 0:01:45]} Rxa2 {[%emt 0:00:54]} 40. gxh4 {[%emt 0:00:11]} Rh6 {[%emt 0:01:35]} 41. h5 {[%emt 0:30:47]} Rxh5+ {[%emt 0:30:30]} 42. Kg3 {[%emt 0:00:30]} Bxg4 {[%emt 0:01:14]} 43. Kxg4 {[%emt 0:00:00]} Rh1 {[%emt 0:01:41]} 44. Kxg5 {[%emt 0:00:02]} Ra6 {[%emt 0:00:13]} 45. Nd5 {[%emt 0:00:36]} Rg6+ {[%emt 0:00:10]} 46. Kf5 {[%emt 0:00:12]} Rh5+ {[%emt 0:01:52]} 47. Kf4 {[%emt 0:00:11]} Kf8 {[%emt 0:01:41]} 48. Ne3 {[%emt 0:00:36]} Rh4+ {[%emt 0:00:58]} 49. Ke5 {[%emt 0:01:04]} Re6+ {[%emt 0:00:08]} 50. Kf5 {[%emt 0:00:11]} Rhh6 {[%emt 0:01:06]} 51. Rd8+ {[%emt 0:01:10]} Ke7 {[%emt 0:00:50]} 52. Ra8 {[%emt 0:00:04]} Rhf6+ {[%emt 0:02:04]} 53. Kg4 {[%emt 0:00:22]} Rg6+ {[%emt 0:00:04]} 54. Kf4 {[%emt 0:00:13]} Ra6 {[%emt 0:01:57]} 55. Nf5+ {[%emt 0:01:21]} Kd7 {[%emt 0:00:07]} 56. Rf8 {[%emt 0:00:11]} f6 {[%emt 0:00:59]} 57. Rf7+ {[%emt 0:00:11]} Kd8 {[%emt 0:00:09]} 58. Rb7 {[%emt 0:00:07]} Rg1 {[%emt 0:01:01]} 59. Rxb5 {[%emt 0:00:22]} Rb6 {[%emt 0:00:12]} 60. Rd5+ {[%emt 0:00:16]} Kc7 {[%emt 0:00:20]} 61. Nd4 {[%emt 0:00:27]} a6 {[%emt 0:00:37]} 62. Kf5 {[%emt 0:00:15]} Rg5+ {[%emt 0:01:12]} 63. Kf4 {[%emt 0:00:10]} Rxd5 {[%emt 0:00:24]} 64. exd5 {[%emt 0:00:01]} Kd6 {[%emt 0:00:14]} 65. Ke4 {[%emt 0:01:55]} Rb4 {[%emt 0:00:06]} 66. Ke3 {[%emt 0:02:45]} Kxd5 {[%emt 0:00:10]} 67. Nf5 {[%emt 0:00:06]} Ke5 {[%emt 0:00:17]} 68. Ne7 {[%emt 0:00:06]} Rxb3+ {[%emt 0:00:05]} 69. Ke2 {[%emt 0:00:07]} Rc3 {[%emt 0:00:20]} 70. Ng6+ {[%emt 0:00:12]} Kd4 {[%emt 0:00:14]} 71. Ne7 {[%emt 0:00:31]} Re3+ {[%emt 0:00:24]} 0-1

[Event "Int SVK-ch Open 2020"]
[Site "Drienica"]
[Date "2020.08.13"]
[Round "6.7"]
[White "Hros, Roman"]
[Black "Brhel, Jan"]
[Result "1-0"]
[ECO "C68"]
[WhiteElo "2199"]
[BlackElo "2042"]
[Annotator "ChessBase"]
[PlyCount "123"]
[EventDate "2020.08.07"]
[EventType "swiss"]
[EventCountry "SVK"]
[TimeControl "40/5400+30:1800+30"]

1. e4 {[%emt 0:00:00]} e5 {[%emt 0:02:06]} 2. Nf3 {[%emt 0:01:01]} Nc6 {[%emt 0:00:37]} 3. Bb5 {[%emt 0:00:12]} a6 {[%emt 0:01:05]} 4. Bxc6 {[%emt 0:00:19]} dxc6 {[%emt 0:00:23]} 5. d4 {[%emt 0:00:01]} exd4 {[%emt 0:00:36]} 6. Qxd4 {[%emt 0:00:01]} Qxd4 {[%emt 0:00:42]} 7. Nxd4 {[%emt 0:00:02]} Bd7 {[%emt 0:06:38]} 8. Nc3 {[%emt 0:02:45]} Bb4 {[%emt 0:02:56]} 9. Nde2 {[%emt 0:02:25]} Ne7 {[%emt 0:01:52]} 10. Be3 {[%emt 0:11:59]} c5 {[%emt 0:05:33]} 11. a3 {[%emt 0:01:47]} Bxc3+ {[%emt 0:00:11]} 12. Nxc3 {[%emt 0:00:10]} b6 {[%emt 0:00:07]} 13. Rd1 {[%emt 0:07:52]} O-O-O {[%emt 0:01:24]} 14. f3 {[%emt 0:02:31]} Be6 {[%emt 0:03:09]} 15. Kf2 {[%emt 0:01:13]} Rd6 {[%emt 0:03:25]} 16. Bf4 {[%emt 0:03:55]} Rxd1 {[%emt 0:01:57]} 17. Rxd1 {[%emt 0:00:13]} Rd8 {[%emt 0:07:33]} 18. Rxd8+ {[%emt 0:01:28]} Kxd8 {[%emt 0:00:08]} 19. g4 {[%emt 0:02:48]} Nc6 {[%emt 0:08:07]} 20. Ne2 {[%emt 0:07:06]} g6 {[%emt 0:21:45]} 21. Be3 {[%emt 0:13:03]} Ne5 {[%emt 0:01:50]} 22. h3 {[%emt 0:02:09]} Nc4 {[%emt 0:04:38]} 23. Bc1 {[%emt 0:00:08]} f6 {[%emt 0:02:09]} 24. h4 {[%emt 0:09:20]} Nd6 {[%emt 0:07:06]} 25. Kg3 {[%emt 0:03:09]} Ke7 {[%emt 0:02:17]} 26. Bf4 {[%emt 0:05:50]} Bc4 {[%emt 0:00:50]} 27. Nc3 {[%emt 0:01:04]} Ke6 {[%emt 0:04:13]} 28. b3 {[%emt 0:03:11]} Nb5 {[%emt 0:05:18]} 29. Nxb5 {[%emt 0:01:37]} Bxb5 {[%emt 0:00:07]} 30. Bxc7 {[%emt 0:00:13]} c4 {[%emt 0:03:27]} 31. bxc4 {[%emt 0:00:39]} Bxc4 {[%emt 0:01:00]} 32. Bxb6 {[%emt 0:00:02]} Be2 {[%emt 0:01:01]} 33. Kf4 {[%emt 0:04:58]} h6 {[%emt 0:00:49]} 34. h5 {[%emt 0:01:27]} Bb5 {[%emt 0:01:03]} 35. hxg6 {[%emt 0:07:56]} Be8 {[%emt 0:00:02]} 36. Ke3 {[%emt 0:00:23]} Bxg6 {[%emt 0:00:13]} 37. f4 {[%emt 0:01:38]} Be8 {[%emt 0:01:11]} 38. f5+ {[%emt 0:02:29]} Ke7 {[%emt 0:00:58]} 39. Bc5+ {[%emt 0:00:19]} Kf7 {[%emt 0:00:33]} 40. Kd3 {[%emt 0:01:21]} Ba4 {[%emt 0:00:29]} 41. Be3 {[%emt 0:30:10]} Kg7 {[%emt 0:30:31]} 42. c4 {[%emt 0:00:52]} Bd1 {[%emt 0:00:00]} 43. c5 {[%emt 0:00:00]} Kf7 {[%emt 0:00:00]} 44. Bxh6 {[%emt 0:00:00]} Bxg4 {[%emt 0:00:00]} 45. Kd4 {[%emt 0:00:00]} Ke7 {[%emt 0:00:00]} 46. Bf4 {[%emt 0:00:00]} Bd1 {[%emt 0:00:00]} 47. c6 {[%emt 0:00:00]} Bc2 {[%emt 0:00:00]} 48. c7 {[%emt 0:00:06]} Kd7 {[%emt 0:00:00]} 49. Bd6 {[%emt 0:00:32]} Bb1 {[%emt 0:00:00]} 50. Ke3 {[%emt 0:00:33]} a5 {[%emt 0:00:00]} 51. Kf4 {[%emt 0:00:30]} Bd3 {[%emt 0:00:00]} 52. e5 {[%emt 0:00:52]} Ba6 {[%emt 0:00:00]} 53. Ke4 {[%emt 0:01:09]} Kc6 {[%emt 0:00:45]} 54. Kf4 {[%emt 0:01:56]} Kd7 {[%emt 0:02:41]} 55. exf6 {[%emt 0:00:48]} Ke8 {[%emt 0:03:24]} 56. Ke4 {[%emt 0:00:55]} Kf7 {[%emt 0:00:38]} 57. Be5 {[%emt 0:00:14]} Bc8 {[%emt 0:00:27]} 58. Kd5 {[%emt 0:00:12]} Bxf5 {[%emt 0:00:21]} 59. Kc6 {[%emt 0:00:13]} Bc8 {[%emt 0:00:42]} 60. Kb6 {[%emt 0:00:04]} a4 {[%emt 0:00:03]} 61. Ka7 {[%emt 0:00:10]} Ke6 {[%emt 0:00:55]} 62. Kb8 {[%emt 0:00:04]} 1-0

[Event "Int SVK-ch Open 2020"]
[Site "Drienica"]
[Date "2020.08.12"]
[Round "6.9"]
[White "Socko, Weronika"]
[Black "Steiniger, Florian"]
[Result "1/2-1/2"]
[ECO "A40"]
[WhiteElo "1741"]
[BlackElo "1889"]
[Annotator "NA RC"]
[PlyCount "84"]
[EventDate "2020.08.07"]
[EventType "swiss"]
[EventCountry "SVK"]
[SourceTitle "playchess.com"]
[Source "ChessBase"]
[SourceQuality "1"]
[TimeControl "40/5400+30:1800+30"]

1. d4 {[%emt 0:00:00]} g6 {[%emt 0:00:00]} 2. Nf3 {[%emt 0:00:10]} Bg7 {[%emt 0:00:00]} 3. c4 {[%emt 0:00:22]} c5 {[%emt 0:00:38]} 4. e3 {[%emt 0:00:51]} cxd4 {[%emt 0:00:31]} 5. Nxd4 {[%emt 0:01:15]} Nc6 {[%emt 0:00:21]} 6. Nc3 {[%emt 0:02:36]} d6 {[%emt 0:01:49]} 7. Be2 {[%emt 0:02:16]} Nh6 {[%emt 0:05:01]} 8. O-O {[%emt 0:07:41]} Nxd4 {[%emt 0:05:25]} 9. exd4 {[%emt 0:00:02]} Nf5 {[%emt 0:00:12]} 10. d5 {[%emt 0:03:42]} O-O {[%emt 0:01:07]} 11. Bd2 {[%emt 0:01:22]} Bd7 {[%emt 0:06:56]} 12. Rc1 {[%emt 0:03:03]} Rc8 {[%emt 0:03:07]} 13. b4 {[%emt 0:06:04]} a6 {[%emt 0:09:29]} 14. Ne4 {[%emt 0:04:04]} Qe8 {[%emt 0:10:08]} 15. Bc3 {[%emt 0:02:05]} Ba4 {[%emt 0:04:20]} 16. Qd3 {[%emt 0:01:30]} Bh6 {[%emt 0:01:12]} (16... Bd7 $16) 17. f4 {[%emt 0:00:51]} Bg7 {[%emt 0:01:38]} 18. Bxg7 {[%emt 0:01:05]} Nxg7 {[%emt 0:00:05]} 19. Qh3 {[%emt 0:03:30]} Bd7 {[%emt 0:00:45]} 20. g4 {[%emt 0:06:24]} h5 {[%emt 0:07:58]} 21. f5 {[%emt 0:02:37]} f6 {[%emt 0:13:03]} 22. Ng3 {[%emt 0:04:27]} hxg4 {[%emt 0:03:42]} 23. Bxg4 {[%emt 0:00:50]} g5 {[%emt 0:00:34]} 24. Rfe1 {[%emt 0:08:26]} Qd8 {[%emt 0:01:16]} 25. Re4 {[%emt 0:11:34]} ({Better is} 25. c5 $16) 25... Be8 {[%emt 0:02:43]} (25... b5 $11) 26. Rce1 {[%emt 0:02:52]} (26. Qh6 $16) 26... Rf7 {[%emt 0:03:49]} (26... Qb6+ $11 27. Kg2 Qxb4) 27. Qh6 {[%emt 0:02:40]} b5 {[%emt 0:05:07]} 28. Qh3 $2 {[%emt 0:10:40]} (28. Bh5 $18 e5 29. fxe6) 28... Rxc4 {[%emt 0:01:09]} ({Of course not} 28... bxc4 $6 29. Qh6 $11) 29. Qf1 {[%emt 0:02:30]} Qb6+ {[%emt 0:02:00]} 30. Kh1 {[%emt 0:00:15]} Qc7 {[%emt 0:00:12]} 31. Bd1 {[%emt 0:01:58]} Rxe4 {[%emt 0:01:19]} 32. Rxe4 {[%emt 0:00:41]} Bd7 {[%emt 0:01:50]} 33. h4 $2 {[%emt 0:01:25]} (33. Bg4 $17 {is a better defense.}) 33... Qc3 {[%emt 0:02:47]} 34. Rg4 {[%emt 0:01:51]} gxh4 {[%emt 0:01:54]} 35. Nh5 {[%emt 0:00:50]} Kf8 {[%emt 0:02:44]} 36. Qg2 {[%emt 0:02:34]} Qe1+ {[%emt 0:00:11]} ({Worse is} 36... Bxf5 37. Rxg7 Qe1+ 38. Kh2 $15) 37. Kh2 {[%emt 0:00:38]} Qe5+ {[%emt 0:00:14]} ({Worse is} 37... Qxd1 38. Rxg7 Qh1+ 39. Kxh1 Ke8 40. Rg8+ Rf8 41. Rxf8+ {[%mdl 64] Back Rank} Kxf8 42. Qg7+ Ke8 43. Qg8#) 38. Kh1 $19 {[%emt 0:00:50]} Qe1+ {[%emt 0:00:08]} 39. Kh2 {[%emt 0:00:10]} Qe5+ {[%emt 0:00:05]} 40. Kh1 {[%emt 0:00:45]} Qe1+ {[%emt 0:01:37]} 41. Kh2 Qe5+ 42. Kh3 Bxf5 1/2-1/2

[Event "Int SVK-ch Open 2020"]
[Site "Drienica"]
[Date "2020.08.12"]
[Round "6.10"]
[White "Malinovsky, Jozef"]
[Black "Bakalar, Jan"]
[Result "1/2-1/2"]
[ECO "D45"]
[WhiteElo "1698"]
[BlackElo "1896"]
[Annotator "NA"]
[PlyCount "38"]
[EventDate "2020.08.07"]
[EventType "swiss"]
[EventCountry "SVK"]
[SourceTitle "playchess.com"]
[Source "ChessBase"]
[SourceQuality "1"]
[TimeControl "40/5400+30:1800+30"]

1. c4 {[%emt 0:00:00]} c6 {[%emt 0:00:26]} 2. Nf3 {[%emt 0:00:34]} d5 {[%emt 0:00:35]} 3. e3 {[%emt 0:02:57]} Nf6 {[%emt 0:01:05]} 4. Nc3 {[%emt 0:00:10]} a6 {[%emt 0:02:24]} 5. d4 {[%emt 0:03:21]} e6 {[%emt 0:00:23]} 6. a3 {[%emt 0:00:13]} dxc4 {[%emt 0:00:27]} 7. Bxc4 {[%emt 0:00:04]} b5 {[%emt 0:00:10]} 8. Ba2 {[%emt 0:00:37]} Nbd7 {[%emt 0:01:27]} 9. O-O {[%emt 0:00:36]} Bb7 {[%emt 0:00:16]} 10. b4 {[%emt 0:00:30]} a5 {[%emt 0:02:02]} 11. Rb1 {[%emt 0:00:57]} axb4 {[%emt 0:00:34]} 12. axb4 {[%emt 0:00:03]} Nb6 {[%emt 0:07:24]} 13. Ne5 $11 {[%emt 0:00:56]} Nbd5 {[%emt 0:00:58]} 14. Nxd5 {[%emt 0:00:43]} Rxa2 {[%emt 0:01:34]} 15. Nxf6+ {[%emt 0:00:24]} gxf6 {[%emt 0:00:58]} 16. Nd3 {[%emt 0:02:34]} Rg8 {[%emt 0:02:46]} 17. Nc5 {[%emt 0:00:16]} Bc8 {[%emt 0:00:28]} 18. Qf3 {[%emt 0:03:51]} Bd7 {[%emt 0:27:40]} 19. Rd1 {[%emt 0:06:32]} f5 {[%emt 0:02:16]} 1/2-1/2